Cogmind - Beta 16 @@@ ROGUE MODE // 2025.12.04 @ 13:51:18 Player: Grem Result: Destroyed by X9-AFC(R) with Subdweller Machine Gun Performance ------------- Evolutions (0) 0 Regions Visited (3) 600 Robots Destroyed (9) 45 Value Destroyed (180) 180 Prototype IDs (0) 0 Alien Tech Used (0) 0 Bonus (0) 0 TOTAL SCORE: 825 Bonus ------- None Cogmind --------- Core Integrity 0/250 Matter 300/300 Energy 37/100 System Corruption 0% Temperature Cool (3) Movement Core (200) Ox3 Location -10/Subcaves Parts ------- > --- POWER (1) -------- (None) > --- PROPULSION (2) --- (None) > --- UTILITY (2) ------ Machine Analyzer Subdweller Optics > --- WEAPON (2) ------- Subdweller Beam Cannon > --- INVENTORY (5) ---- High-capacity Storage Unit Subdweller Machine Gun Subdweller Machine Gun Peak State ------------ > --- POWER ------------ Ion Engine > --- PROPULSION ------- Aluminum Leg Aluminum Leg > --- UTILITY ---------- Machine Analyzer Subdweller Optics > --- WEAPON ----------- Subdweller Beam Cannon Bore Cannon > --- INVENTORY -------- High-capacity Storage Unit [Rating: 15] Favorites ----------- Power Ion Engine Engine Ion Engine Propulsion Aluminum Leg Leg Aluminum Leg Utility High-capacity Storage Unit Device Subdweller Optics Storage High-capacity Storage Unit Processor Machine Analyzer Weapon Small Laser Energy Gun Small Laser Energy Cannon Subdweller Beam Cannon Ballistic Cannon Bore Cannon Build | -11 -10 -10 -10 ------- Run | Yrd Mat Min Sub Slots Evolved . | . . . . Power . | . . . . Propulsion . | . . . . Utility . | . . . . Weapon . | . . . . Parts Attached 13 | 7 2 . 4 Power 2 | 2 . . . Engine 2 | 2 . . . Core . | . . . . Reactor . | . . . . Propulsion 2 | 2 . . . Treads . | . . . . Leg 2 | 2 . . . Wheel . | . . . . Hover . | . . . . Flight . | . . . . Utility 5 | 1 2 . 2 Device 1 | . . . 1 Storage 3 | 1 2 . . Processor 1 | . . . 1 Hackware . | . . . . Protection . | . . . . Artifact . | . . . . Weapon 4 | 2 . . 2 Energy Gun 2 | 2 . . . Energy Cannon 1 | . . . 1 Ballistic Gun . | . . . . Ballistic Cannon 1 | . . . 1 Launcher . | . . . . Special Weapon . | . . . . Impact Weapon . | . . . . Slashing Weapon . | . . . . Piercing Weapon . | . . . . Special Melee Weapon . | . . . . Unidentified Prototypes . | . . . . Parts Lost 4 | . . . 4 Power 1 | . . . 1 Propulsion 2 | . . . 2 Utility . | . . . . Weapon 1 | . . . 1 Highest Loss Streak 3 | . . . 3 To Critical Strikes . | . . . . Average Backups 1 | . 1 2 1 Power . | . 1 1 . Propulsion . | . . . . Utility . | . . 1 . Weapon . | . . . . Tool/Special . | . . . . Unused Backups 3 | . . . 3 Power . | . . . . Propulsion . | . . . . Utility 1 | . . . 1 Weapon 2 | . . . 2 Tool/Special . | . . . . Average Slot Usage (%) 94 | . 89 100 95 Engine 13 | . 14 14 13 Leg 26 | . 28 28 24 Device 4 | . . . 8 Storage 17 | . 18 28 14 Processor 2 | . . . 4 Energy Gun 16 | . 28 28 7 Energy Cannon 5 | . . . 9 Ballistic Cannon 6 | . . . 11 Peak Build Rating 15 | 6 7 7 15 Average Rating 9 | 4 6 7 11 On Entrance 5 | . 6 7 7 Avg Prop Armor Cover (%) . | . . . . Naked Turns . | . . . . Heaviest Build 64 | 13 53 52 64 Greatest Support 20 | 20 20 20 20 Greatest Overweight (x) 3 | . 2 2 3 Average Overweight (x) 1 | . . 2 2 Largest Inventory Capacity 20 | 8 20 20 20 Average Capacity 14 | 7 11 20 15 Most Carried 5 | 1 2 2 5 Average Carried 1 | . 1 2 1 Final Capacity 20 | 8 20 20 5 Final Carried 3 | 1 2 2 3 Class Distribution -------------------- 87% | Mutant 12% | Scavenger-Mutant Dominant Class ---------------- Mutant | -10/Materials Mutant | -10/Mines Mutant | -10/Subcaves Resources | -11 -10 -10 -10 ----------- Run | Yrd Mat Min Sub Matter Collected 425 | 231 49 . 145 Remotely . | . . . . Salvage Created 208 | . 50 . 158 Parts 16 | . 5 . 11 Haulers Intercepted . | . . . . Recyclers Shooed . | . . . . Parts Field Recycled . | . . . . Retrieved Matter . | . . . . Parts Self-Destructed 3 | . . . 3 Prevented . | . . . . Parts Restored . | . . . . Kills | -11 -10 -10 -10 ------- Run | Yrd Mat Min Sub Combat Hostiles Destroyed 9 | . 3 . 6 Guns 6 | . 3 . 3 Cannons 3 | . . . 3 Classes Destroyed 2 | . 1 . 1 Swarmer 6 | . 3 . 3 Subdweller 3 | . . . 3 Best Kill Streak 3 | . 3 . 2 Combat Bots Only 3 | . 3 . 2 Max Kills in Single Turn 2 | . 1 . 2 Gunslinging . | . . . . Exploded . | . . . . Melee . | . . . . Uniques/NPCs Destroyed . | . . . . Combat | -11 -10 -10 -10 -------- Run | Yrd Mat Min Sub Hostile Shots Fired 96 | . 42 1 53 Missed 26 | . 9 . 17 Hits 70 | . 33 1 36 Projectile 70 | . 33 1 36 AOE 1 | . . . 1 Damage Taken 876 | . 258 13 605 Core 260 | . 49 13 198 Absorbed by Shields . | . . . . Core Remaining (%) 100 | 100 . . . Volleys Fired 32 | . 11 . 21 Largest 2 | . 2 . 2 Hottest 128 | . 90 . 128 Shots Fired 59 | . 22 . 37 Gun 42 | . 22 . 20 Cannon 17 | . . . 17 Launcher . | . . . . Special . | . . . . Kinetic 10 | . . . 10 Thermal 49 | . 22 . 27 Explosive . | . . . . Electromagnetic . | . . . . Robot Hit Streak 7 | . 4 . 7 Robot Miss Streak 7 | . 4 . 7 Penetration Max . | . . . . Secondary Targets . | . . . . Shots Hit Robots 23 | . 7 . 16 Core Hits 9 | . 3 . 6 Critical Kills . | . . . . Critical Parts Destroyed 1 | . . . 1 Critical Strikes 2 | . . . 2 Destroy 2 | . . . 2 Melee Attacks . | . . . . Impact . | . . . . Slashing . | . . . . Piercing . | . . . . Sneak Attacks . | . . . . Combat Hostiles . | . . . . Follow-up Attacks . | . . . . Damage Inflicted 425 | . 83 . 342 Guns 173 | . 83 . 90 Cannons 252 | . . . 252 Explosions . | . . . . Melee . | . . . . Ramming . | . . . . Kinetic 76 | . . . 76 Thermal 349 | . 83 . 266 Explosive . | . . . . Electromagnetic . | . . . . Impact . | . . . . Slashing . | . . . . Piercing . | . . . . Highest Corruption . | . . . . Average Corruption . | . . . . Corruption Purged . | . . . . Corruption Blocked . | . . . . Overload Shots . | . . . . Overflow Damage . | . . . . Projectiles . | . . . . Explosions . | . . . . Melee . | . . . . Knockbacks 1 | . . . 1 Impact . | . . . . Kinetic 1 | . . . 1 Secondary . | . . . . Self-Inflicted Damage . | . . . . Shots . | . . . . Rammed . | . . . . Targets Rammed . | . . . . Kicked . | . . . . Crushed . | . . . . Highest Temperature 150 | . 150 . 12 Average Temperature 52 | . 60 . 6 Received Heat Transfer 18 | . . . 18 Siege Activations . | . . . . Martial Activations . | . . . . Shielding Activations . | . . . . Robots Disrupted . | . . . . Combat Hostiles . | . . . . Robots Corrupted . | . . . . Combat Hostiles . | . . . . Parts Fried . | . . . . Impact Corruptions . | . . . . Robots Melted . | . . . . Combat Hostiles . | . . . . Parts Melted 2 | . 2 . . Heat Transferred 669 | . 211 . 458 Parts Sabotaged . | . . . . Parts Stolen . | . . . . Parts Stripped . | . . . . Power Chain Reactions . | . . . . Alert | -11 -10 -10 -10 ------- Run | Yrd Mat Min Sub Maximum Alert Level . | . . . . Low Security (%) 100 | 100 100 100 . Level 1 . | . . . . Level 2 . | . . . . Level 3 . | . . . . Level 4 . | . . . . Level 5 . | . . . . High Security . | . . . . Max Security . | . . . . Peak Influence 60 | . 60 . . Initial . | . . . . Average 11 | . 19 . . Influence Increases 190 | . 70 . 120 Destroy 0b10 Robot/C 120 | . 60 . 60 Destroy Leader 10 | . 10 . . Lose Combat Pursuer 60 | . . . 60 Influence Decreases 190 | . 70 . 120 Time Decay 190 | . 70 . 120 Squads Dispatched . | . . . . Investigation . | . . . . Extermination . | . . . . Reinforcement . | . . . . Assault . | . . . . Garrison . | . . . . Intercept . | . . . . Searches Triggered . | . . . . Construction Impeded . | . . . . Haulers Reinforced . | . . . . Active Scanning Responses . | . . . . Cargo Convoy Interrupts . | . . . . Stealth | -11 -10 -10 -10 --------- Run | Yrd Mat Min Sub Distress Signals . | . . . . Communications Jammed . | . . . . Distress Signals . | . . . . Times Spotted 20 | . 7 1 12 Peak Tracking Total 5 | . 4 1 5 Tactical Retreats 2 | . . . 2 Traps | -11 -10 -10 -10 ------- Run | Yrd Mat Min Sub Traps Triggered . | . . . . Indirectly . | . . . . Trap Hack Attempts . | . . . . Triggered . | . . . . Disarmed . | . . . . Reprogrammed . | . . . . Reused . | . . . . Traps Extracted . | . . . . Installed . | . . . . Triggered . | . . . . Machines | -11 -10 -10 -10 ---------- Run | Yrd Mat Min Sub Machines Disabled . | . . . . Max in Single Turn . | . . . . Machines Repaired . | . . . . Machines Dismantled . | . . . . Machines Sabotaged . | . . . . Overloaded Fab Kills . | . . . . Hacking | -11 -10 -10 -10 --------- Run | Yrd Mat Min Sub Machines Accessed . | . . . . Terminals . | . . . . Fabricators . | . . . . Repair Stations . | . . . . Recycling Units . | . . . . Scanalyzers . | . . . . Garrison Access . | . . . . Total Hacks . | . . . . Successful . | . . . . Failed . | . . . . Catastrophic . | . . . . Database Lockouts . | . . . . Manual . | . . . . Terminals . | . . . . Fabricators . | . . . . Repair Stations . | . . . . Recycling Units . | . . . . Scanalyzers . | . . . . Garrison Access . | . . . . Terminal Hacks . | . . . . Fabricator Hacks . | . . . . Repair Station Hacks . | . . . . Recycling Unit Hacks . | . . . . Scanalyzer . | . . . . Garrison Access Hacks . | . . . . Unauthorized Hacks . | . . . . Terminals . | . . . . Fabricators . | . . . . Repair Stations . | . . . . Recycling Units . | . . . . Scanalyzers . | . . . . Garrison Access . | . . . . Data Cores Recovered . | . . . . Used . | . . . . Hacking Detections . | . . . . Full Trace Events . | . . . . Feedback Events . | . . . . Feedback Blocked . | . . . . Robot Schematics Acquired . | . . . . Robots Built . | . . . . Authchips . | . . . . Time . | . . . . Total Robot Build Rating . | . . . . Part Schematics Acquired . | . . . . Parts Built . | . . . . Authchips . | . . . . Time . | . . . . Total Part Build Rating . | . . . . Part Studies Acquired . | . . . . Parts Repaired . | . . . . Time . | . . . . Parts Recycled . | . . . . Recycled Matter . | . . . . Retrieved Matter . | . . . . Retrieved Components . | . . . . Parts Scanalyzed . | . . . . Part Schematics Acquired . | . . . . Parts Damaged . | . . . . Bothacking | -11 -10 -10 -10 ------------ Run | Yrd Mat Min Sub Used RIF Installer . | . . . . Robots Hacked . | . . . . Non-combat . | . . . . Combat . | . . . . Robot Hacks Applied . | . . . . Relay Couplers Released . | . . . . Fabnet Peak Effective % . | . . . . Robots Rewired . | . . . . Allies Hacked . | . . . . Hacks Repelled . | . . . . Allies | -11 -10 -10 -10 -------- Run | Yrd Mat Min Sub Total Allies . | . . . . Largest Group . | . . . . Highest-Rated Group . | . . . . Highest-Rated Ally . | . . . . Total Orders . | . . . . Ally Attacks . | . . . . Total Damage . | . . . . Kills . | . . . . Allies Corrupted . | . . . . Allies Melted . | . . . . Intel | -11 -10 -10 -10 ------- Run | Yrd Mat Min Sub Active Infowar (turns) 270 | . . . 270 Optics 270 | . . . 270 Machine Analysis 132 | . . . 132 Robot Analysis Total . | . . . . Derelict Logs Recovered . | . . . . Drone Launches . | . . . . Drone Recoveries . | . . . . Exploration | -11 -10 -10 -10 ------------- Run | Yrd Mat Min Sub Turns Passed 796 | 56 226 89 425 Spaces Moved 324 | 42 119 35 128 Core 8 | 8 . . . Treads . | . . . . Legs 316 | 34 119 35 128 Wheels . | . . . . Hover . | . . . . Flight . | . . . . Fastest Speed 50 | 50 120 260 120 Average Speed 202 | 106 147 260 270 Slowest Speed 330 | 120 260 260 330 Overloaded Moves . | . . . . Propulsion Burnouts . | . . . . Robots Hopped . | . . . . Potential Cave-ins . | . . . . Cave-ins Triggered . | . . . . Exploration Rate (%) 11 | 4 21 12 9 Regions Visited 3 Branch Regions 2 Pre-discovered Areas . | . . . . Known Exits Taken . | . . . . Unknown Exits Taken 3 | 1 1 1 . Scrap Searched . | . . . . Spaces Dug . | . . . . Terrain Destroyed 3 | . . . 3 Melee . | . . . . Projectile 3 | . . . 3 AOE . | . . . . Terrain Rammed . | . . . . Walls Destroyed . | . . . . Machines Disabled . | . . . . Actions | -11 -10 -10 -10 --------- Run | Yrd Mat Min Sub Total 401 | 49 148 34 170 Wait 15 | . 12 . 3 Move 321 | 41 118 34 128 Hop . | . . . . Pick Up 9 | 1 2 . 6 Fast Attach 8 | 6 1 . 1 Attach . | . . . . Detach 1 | . . . 1 Swap 8 | 1 3 . 4 Drop 7 | . 1 . 6 Fire 32 | . 11 . 21 Melee . | . . . . Ram . | . . . . Kick . | . . . . Crush . | . . . . Escape Stasis . | . . . . Rewire . | . . . . Trap . | . . . . Miscellaneous . | . . . . Route ------- -11/Scrapyard -10/Materials -10/Mines -10/Subcaves History --------- Turn | Location | Event 33 | -11/Scrapyard | Discovered new exit (range 14) 57 | -11/Scrapyard | Entered Materials 201 | -10/Materials | Discovered new exit (range 16) 283 | -10/Materials | Entered Mines 304 | -10/Mines | Build established: Mutant 305 | -10/Mines | Assembled infested the area 338 | -10/Mines | Discovered new exit (range 14) 372 | -10/Mines | Entered Subcaves 373 | -10/Subcaves | Approached by a straggling Scientist 690 | -10/Subcaves | Core integrity fell below 50% 768 | -10/Subcaves | Ambushed by swarm of Subdwellers 780 | -10/Subcaves | Ambushed by Subdweller buried in earth 787 | -10/Subcaves | Core integrity fell below 20% 797 | -10/Subcaves | Destroyed by X9-AFC(R) with Subdweller Machine Gun Last Messages --------------- Acquired 34 matter. Acquired 3 matter. D4-GYV(u) builds Twisted Machinery. Tech Extrapolator violently self-destructs. Acquired Machine Analyzer. Acquired 10 matter. 1D-VWH(R) suffers critical hit (Destroy). Aluminum Leg destroyed. 3K-QXT(R) destroyed. HV Slug penetrates Twisted Machinery. 1D-VWH(R) destroyed. Acquired 9 matter. Subatomizers dissect the Sub. Machine Gun. Acquired Sub. Machine Gun. Bore Cannon destroyed. Ion Engine destroyed. [Achievement: Do Not Disturb] H4-VXD(R): "ARGHSUB!" H4-VXD(R) destroyed. Aluminum Leg destroyed. Map ----- +----------------------------------------------------+ | #??# "##??##### #??????????????????????? | | ### #?## "#?### #??????????????????????? | | ##"??? #? ##?# ##??????????????????????? | | ??"???? #??## #???????????????????????? | | ??$????? #???## !%##???????????????????????? | | ???$???? # ##????###" %##???????????????????????? | | ???"?????####???????##"* #???????????????????????? | | ???#?????????????????#!&&#?#?????????????????????? | | ?????????????????????# ##;#????????????????????? | | ?????????????????????# "" #????????????????????? | | ???????????""????????## """#????????????????????? | | ????????##""""??####??# " #????????????????????? | | ??????# ## #### R##????????????????????? | | ???????# # ##RR#?????????????????????? | | ????????# %####??????????????????? | | ????????# # #??????????????????? | | ???????# #; #??????????????????? | | ???????# "" #??????????????????? | | ????????# ""## ;"##?????????????????? | | ????????## """??### ;" #?????????????????? | | ?????????#### ??"?????# " #?????????????????? | | ?????????????????????## ! ""##?????????????????? | | ?????????????????????# %"" #??????????????????? | | ?????????????????????# =# ##??????????????????? | | ?????????????????????## ####???????????????????? | | ??????????????????????# @#??????????????????????? | | ??????????????????????## ##??????????????????????? | | ???????????????????????##????????????????????????? | | ?????????????????????????????????????????????????? | | ?????????????????????????????????????????????????? | | ?????????????????????????????????????????????????? | | ?????????????????????????????????????????????????? | | ?????????????????????????????????????????????????? | | ?????????????????????????????????????????????????? | | ?????????????????????????????????????????????????? | | ?????????????????????????????????????????????????? | | ?????????????????????????????????????????????????? | | ?????????????????????????????????????????????????? | | ?????????????????????????????????????????????????? | | ?????????????????????????????????????????????????? | | ?????????????????????????????????????????????????? | | ?????????????????????????????????????????????????? | | ?????????????????????????????????????????????????? | | ?????????????????????????????????????????????????? | | ?????????????????????????????????????????????????? | | ?????????????????????????????????????????????????? | | ?????????????????????????????????????????????????? | | ?????????????????????????????????????????????????? | | ?????????????????????????????????????????????????? | | ?????????????????????????????????????????????????? | +----------------------------------------------------+ Best States ------------- Heat Dissipation 25 Energy Generation 10 Energy Capacity 250 Matter Stores 300 Matter Capacity 500 Sight Range 21 Terrain Scan Density 10 Evasion (%) 55 Item Schematics ----------------- None Robot Schematics ------------------ None Fabricated ------------ Nothing Repaired ---------- Nothing Studied --------- None Alien Tech Used ----------------- None Achievements -------------- DATA ERROR: Steam Global Achievement% Do Not Disturb Spot Them First Challenges ------------ None Game ------ Seed DirtyRestorationPower Manual? 0 Play Time 00:26:04 Cumulative 6.6 hours Start 2025.12.04 @ 12:57:13 End 2025.12.04 @ 13:51:18 Sessions 1 Manual Loads 0 Difficulty Rogue Special Mode None Game No. 10 Rogue 10 Adventurer 0 Explorer 0 Win Type - Total 0 Types 0/0/0/0/0/0/0/0/0/0 Lore% 2 Gallery% 10 Achievement% 7 Wizard Run 0 Options --------- Layout 1 ASCII 0 Keyboard 1 Movement Vi Keybinds 0 Fullscreen 1 Font 32/SmallcapsGlow Map View 50x35 Zoom Use 0% Tactical HUD 0 Map Filters NONE Filters NONE Steam 1 RUN: 401c4238-18dc-46e7-b6ca-c571b82a5c14